[Event "Nino Khurtsidze Memorial 2019"]
[Site "Vani"]
[Date "2019.09.17"]
[Round "1.1"]
[White "Lomineishvili, Maia"]
[Black "Mamedjarova, Zeinab"]
[Result "1-0"]
[ECO "D00"]
[WhiteElo "2370"]
[BlackElo "2286"]
[Annotator "ChessBase"]
[PlyCount "187"]
[EventDate "2019.09.17"]
[EventType "tourn"]
[EventCountry "GEO"]
[SourceTitle "playchess.com"]
[Source "ChessBase"]
[SourceQuality "1"]
[TimeControl "900+10"]

1. d4 {[%emt 0:00:00]} d5 {[%emt 0:00:00]} 2. Nc3 {[%emt 0:00:00]} Bf5 {[%emt 0:00:10]} 3. Bf4 {[%emt 0:00:07]} e6 {[%emt 0:00:11]} 4. f3 {[%emt 0:00:07]} Bg6 {[%emt 0:01:10]} 5. Qd2 {[%emt 0:00:22]} c5 {[%emt 0:00:35]} 6. Nb5 {[%emt 0:00:20]} Na6 {[%emt 0:00:11]} 7. e3 {[%emt 0:00:26]} Qb6 {[%emt 0:00:13]} 8. a4 {[%emt 0:00:30]} c4 {[%emt 0:01:34]} 9. c3 {[%emt 0:00:26]} Rc8 {[%emt 0:01:04]} 10. h4 {[%emt 0:00:13]} Nf6 {[%emt 0:00:19]} 11. g4 {[%emt 0:00:35]} h5 {[%emt 0:00:15]} 12. g5 {[%emt 0:00:05]} Nd7 {[%emt 0:00:40]} 13. Nh3 {[%emt 0:00:31]} Nab8 {[%emt 0:01:46]} 14. Bxb8 {[%emt 0:02:43]} Nxb8 {[%emt 0:00:02]} 15. Nf4 {[%emt 0:00:01]} Bf5 {[%emt 0:00:03]} 16. Bg2 {[%emt 0:00:58]} a6 {[%emt 0:01:23]} 17. e4 {[%emt 0:00:50]} dxe4 {[%emt 0:01:48]} 18. fxe4 {[%emt 0:00:05]} Bg4 {[%emt 0:00:02]} 19. Na3 {[%emt 0:00:15]} Bd6 {[%emt 0:02:02]} 20. O-O {[%emt 0:00:46]} O-O {[%emt 0:01:16]} 21. Rf2 {[%emt 0:01:47]} Nd7 {[%emt 0:00:19]} 22. Bf1 {[%emt 0:01:20]} Qb3 {[%emt 0:01:50]} 23. e5 {[%emt 0:01:18]} Be7 {[%emt 0:00:46]} 24. Be2 {[%emt 0:00:38]} Bxe2 {[%emt 0:00:44]} 25. Qxe2 {[%emt 0:00:09]} g6 {[%emt 0:00:03]} 26. Kh2 {[%emt 0:00:47]} Qxa4 {[%emt 0:00:14]} 27. Nc2 {[%emt 0:01:26]} Qb5 {[%emt 0:00:05]} 28. Ne3 {[%emt 0:00:04]} Kg7 {[%emt 0:00:04]} 29. Raf1 {[%emt 0:00:06]} Nxe5 {[%emt 0:00:41]} 30. dxe5 {[%emt 0:00:04]} Qxe5 {[%emt 0:00:01]} 31. Kh1 {[%emt 0:00:12]} Bc5 {[%emt 0:00:08]} 32. Nfg2 {[%emt 0:00:06]} Bd6 {[%emt 0:00:12]} 33. Ne1 {[%emt 0:00:22]} b5 {[%emt 0:00:04]} 34. Nf3 {[%emt 0:00:34]} Qf4 {[%emt 0:00:05]} 35. Qd2 {[%emt 0:01:00]} Bc5 {[%emt 0:00:28]} 36. Ng2 {[%emt 0:00:27]} Qg3 {[%emt 0:00:09]} 37. Re2 {[%emt 0:00:16]} Rfd8 {[%emt 0:00:10]} 38. Qf4 {[%emt 0:00:09]} Qh3+ {[%emt 0:00:11]} 39. Nh2 {[%emt 0:00:06]} Rd7 {[%emt 0:00:02]} 40. Rf3 {[%emt 0:00:11]} Rd1+ {[%emt 0:00:06]} 41. Ne1 {[%emt 0:00:10]} Qf5 {[%emt 0:00:18]} 42. Qg3 {[%emt 0:00:00]} Qd5 {[%emt 0:00:07]} 43. Qg2 {[%emt 0:00:07]} Rd8 {[%emt 0:00:04]} 44. Rf1 {[%emt 0:00:03]} Qd7 {[%emt 0:00:22]} 45. Nhf3 {[%emt 0:00:03]} Qc7 {[%emt 0:00:08]} 46. Ne5 {[%emt 0:00:02]} Rf8 {[%emt 0:00:11]} 47. Qf3 {[%emt 0:00:03]} Bd6 {[%emt 0:00:11]} 48. Qf6+ {[%emt 0:00:06]} Kh7 {[%emt 0:00:13]} 49. Nxf7 {[%emt 0:00:06]} Qb7+ {[%emt 0:00:09]} 50. Kg1 {[%emt 0:00:30]} Bc5+ {[%emt 0:00:02]} 51. Kh2 {[%emt 0:00:02]} Rd7 {[%emt 0:00:17]} 52. Rxe6 {[%emt 0:00:07]} Qc7+ {[%emt 0:00:11]} 53. Kh3 {[%emt 0:00:04]} Rdxf7 {[%emt 0:00:08]} 54. Qxg6+ {[%emt 0:00:10]} Kh8 {[%emt 0:00:10]} 55. Qh6+ {[%emt 0:00:08]} Kg8 {[%emt 0:00:00]} 56. Rxf7 {[%emt 0:00:22]} Rxf7 {[%emt 0:00:00]} 57. Qg6+ {[%emt 0:00:11]} Kf8 {[%emt 0:00:00]} 58. Qh6+ {[%emt 0:00:06]} Kg8 {[%emt 0:00:02]} 59. Re8+ {[%emt 0:00:11]} Bf8 {[%emt 0:00:13]} 60. Qg6+ {[%emt 0:00:02]} Rg7 {[%emt 0:00:06]} 61. Qe6+ {[%emt 0:00:01]} Qf7 {[%emt 0:00:18]} 62. Nf3 {[%emt 0:00:08]} Qxe6+ {[%emt 0:00:11]} 63. Rxe6 {[%emt 0:00:01]} Rf7 {[%emt 0:00:32]} 64. Kg2 {[%emt 0:00:08]} a5 {[%emt 0:00:14]} 65. Ra6 {[%emt 0:00:20]} a4 {[%emt 0:00:06]} 66. Rb6 {[%emt 0:00:08]} a3 {[%emt 0:00:27]} 67. bxa3 {[%emt 0:00:01]} Ra7 {[%emt 0:00:03]} 68. Rxb5 {[%emt 0:00:09]} Rxa3 {[%emt 0:00:02]} 69. Rb8 {[%emt 0:00:21]} Rxc3 {[%emt 0:00:06]} 70. Ne5 {[%emt 0:00:06]} Rb3 {[%emt 0:00:24]} 71. Rc8 {[%emt 0:00:00]} Kg7 {[%emt 0:00:16]} 72. Rc7+ {[%emt 0:00:04]} Kg8 {[%emt 0:00:10]} 73. Rxc4 {[%emt 0:00:05]} Bd6 {[%emt 0:00:10]} 74. Rc8+ {[%emt 0:00:16]} Kg7 {[%emt 0:00:05]} 75. Nc4 {[%emt 0:00:10]} Rg3+ {[%emt 0:00:05]} 76. Kf2 {[%emt 0:00:05]} Bf4 {[%emt 0:00:21]} 77. Rd8 {[%emt 0:00:10]} Rc3 {[%emt 0:00:06]} 78. Rd4 {[%emt 0:00:32]} Bb8 {[%emt 0:00:26]} 79. Kg2 {[%emt 0:00:10]} Rg3+ {[%emt 0:00:05]} 80. Kf2 {[%emt 0:00:10]} Rc3 {[%emt 0:00:10]} 81. Ke2 {[%emt 0:00:06]} Rh3 {[%emt 0:00:11]} 82. Ne3 {[%emt 0:00:05]} Kg6 83. Rc4 {[%emt 0:00:10]} Rh2+ 84. Kd3 {[%emt 0:00:21]} Rh3 85. Rc6+ {[%emt 0:00:21]} Kf7 86. g6+ {[%emt 0:00:05]} Kg7 87. Ke2 {[%emt 0:00:06]} Rh2+ 88. Kf3 {[%emt 0:00:10]} Rh3+ 89. Kf2 {[%emt 0:00:05]} Rh2+ 90. Kg1 {[%emt 0:00:16]} Re2 91. Nf5+ {[%emt 0:00:05]} Kf8 92. Rc8+ {[%emt 0:00:10]} Re8 93. g7+ {[%emt 0:00:05]} Kf7 94. Rxe8 {[%emt 0:00:10]} 1-0

[Event "Nino Khurtsidze Memorial 2019"]
[Site "Vani"]
[Date "2019.09.17"]
[Round "1.3"]
[White "Dzagnidze, Nana"]
[Black "Khotenashvili, Bela"]
[Result "1/2-1/2"]
[ECO "A36"]
[WhiteElo "2469"]
[BlackElo "2371"]
[Annotator "ChessBase"]
[PlyCount "133"]
[EventDate "2019.09.17"]
[EventType "tourn"]
[EventCountry "GEO"]
[SourceTitle "playchess.com"]
[Source "ChessBase"]
[SourceQuality "1"]
[TimeControl "900+10"]

1. c4 {[%emt 0:00:00]} c5 {[%emt 0:00:00]} 2. Nc3 {[%emt 0:00:00]} Nc6 {[%emt 0:00:09]} 3. g3 {[%emt 0:00:00]} g6 {[%emt 0:00:02]} 4. Bg2 {[%emt 0:00:02]} Bg7 {[%emt 0:00:01]} 5. e3 {[%emt 0:00:05]} d6 {[%emt 0:01:22]} 6. Nge2 {[%emt 0:00:16]} h5 {[%emt 0:00:36]} 7. h3 {[%emt 0:01:03]} Nf6 {[%emt 0:04:11]} 8. O-O {[%emt 0:01:07]} O-O {[%emt 0:00:44]} 9. d4 {[%emt 0:00:20]} cxd4 {[%emt 0:00:57]} 10. exd4 {[%emt 0:01:59]} Bf5 {[%emt 0:01:26]} 11. Bg5 {[%emt 0:00:23]} Qc8 {[%emt 0:01:28]} 12. Kh2 {[%emt 0:00:04]} e5 {[%emt 0:00:16]} 13. Be3 {[%emt 0:08:06]} exd4 {[%emt 0:01:56]} 14. Bxd4 {[%emt 0:00:02]} Nxd4 {[%emt 0:02:11]} 15. Nxd4 {[%emt 0:00:02]} Rd8 {[%emt 0:00:23]} 16. Rc1 {[%emt 0:01:16]} Bh6 {[%emt 0:01:06]} 17. Nxf5 {[%emt 0:01:12]} Qxf5 {[%emt 0:00:07]} 18. Rc2 {[%emt 0:00:02]} Rab8 {[%emt 0:00:30]} 19. Re2 {[%emt 0:00:45]} a6 {[%emt 0:00:15]} 20. Nd5 {[%emt 0:00:55]} Nxd5 {[%emt 0:00:06]} 21. Bxd5 {[%emt 0:00:01]} Qf6 {[%emt 0:00:19]} 22. b3 {[%emt 0:00:41]} b5 {[%emt 0:00:05]} 23. Kg2 {[%emt 0:00:04]} a5 {[%emt 0:00:24]} 24. Rfe1 {[%emt 0:00:07]} Bf8 {[%emt 0:00:08]} 25. Re3 {[%emt 0:00:16]} Rd7 {[%emt 0:00:13]} 26. cxb5 {[%emt 0:00:06]} h4 {[%emt 0:00:07]} 27. Qd3 {[%emt 0:00:11]} Rc7 {[%emt 0:00:06]} 28. Rf3 {[%emt 0:00:02]} Qg5 {[%emt 0:00:11]} 29. Re4 {[%emt 0:00:03]} Bg7 {[%emt 0:00:16]} 30. Rxh4 {[%emt 0:00:25]} Qe5 {[%emt 0:00:11]} 31. Re4 {[%emt 0:00:15]} Qc3 {[%emt 0:00:07]} 32. Qxc3 {[%emt 0:00:09]} Bxc3 {[%emt 0:00:02]} 33. Bxf7+ {[%emt 0:00:04]} Kg7 {[%emt 0:00:08]} 34. Rc4 {[%emt 0:00:21]} Rxf7 {[%emt 0:00:13]} 35. Rxf7+ {[%emt 0:00:06]} Kxf7 {[%emt 0:00:01]} 36. Rxc3 {[%emt 0:00:05]} Rxb5 {[%emt 0:00:01]} 37. h4 {[%emt 0:00:12]} Kf6 {[%emt 0:00:05]} 38. Rc6 {[%emt 0:00:04]} Ke5 {[%emt 0:00:08]} 39. Kf3 {[%emt 0:00:12]} a4 {[%emt 0:00:11]} 40. bxa4 {[%emt 0:00:04]} Rb2 {[%emt 0:00:04]} 41. Rc4 {[%emt 0:00:18]} Rxa2 {[%emt 0:00:16]} 42. Rg4 {[%emt 0:00:06]} Kf6 {[%emt 0:00:06]} 43. Rd4 {[%emt 0:00:16]} Ke5 {[%emt 0:00:08]} 44. Re4+ {[%emt 0:00:01]} Kf6 {[%emt 0:00:02]} 45. g4 {[%emt 0:00:01]} d5 {[%emt 0:00:05]} 46. Rf4+ {[%emt 0:00:05]} Ke5 {[%emt 0:00:02]} 47. Rb4 {[%emt 0:00:09]} Ra3+ {[%emt 0:00:07]} 48. Kg2 {[%emt 0:00:11]} d4 {[%emt 0:00:06]} 49. h5 {[%emt 0:00:13]} gxh5 {[%emt 0:00:05]} 50. gxh5 {[%emt 0:00:01]} Rc3 {[%emt 0:01:17]} 51. h6 {[%emt 0:00:24]} Rc6 {[%emt 0:00:11]} 52. Rb5+ {[%emt 0:00:29]} Ke4 {[%emt 0:00:11]} 53. Rh5 {[%emt 0:00:02]} Rc8 {[%emt 0:00:05]} 54. h7 {[%emt 0:00:09]} Rh8 {[%emt 0:00:02]} 55. Kf1 {[%emt 0:00:12]} Kd3 {[%emt 0:00:03]} 56. a5 {[%emt 0:00:03]} Kc2 {[%emt 0:00:22]} 57. a6 {[%emt 0:00:19]} d3 {[%emt 0:00:03]} 58. Rc5+ {[%emt 0:00:05]} Kd1 {[%emt 0:00:03]} 59. a7 {[%emt 0:00:15]} d2 {[%emt 0:00:02]} 60. Rc7 {[%emt 0:00:18]} Rc8 {[%emt 0:00:05]} 61. Rd7 {[%emt 0:00:05]} Kc2 {[%emt 0:00:08]} 62. a8=Q {[%emt 0:00:16]} Rxa8 {[%emt 0:00:01]} 63. Rc7+ {[%emt 0:00:00]} Kd3 {[%emt 0:00:09]} 64. Rd7+ {[%emt 0:00:04]} Kc2 {[%emt 0:00:01]} 65. Rc7+ {[%emt 0:00:07]} Kd3 {[%emt 0:00:02]} 66. Rd7+ {[%emt 0:00:07]} Kc2 {[%emt 0:00:02]} 67. Rc7+ {[%emt 0:00:28]} 1/2-1/2

[Event "Nino Khurtsidze Memorial 2019"]
[Site "Vani"]
[Date "2019.09.17"]
[Round "1.4"]
[White "Melia, Salome"]
[Black "Batsiashvili, Nino"]
[Result "0-1"]
[ECO "B12"]
[WhiteElo "2302"]
[BlackElo "2349"]
[Annotator "ChessBase"]
[PlyCount "104"]
[EventDate "2019.09.17"]
[EventType "tourn"]
[EventCountry "GEO"]
[SourceTitle "playchess.com"]
[Source "ChessBase"]
[SourceQuality "1"]
[TimeControl "900+10"]

1. e4 {[%emt 0:00:00]} c6 {[%emt 0:00:00]} 2. d4 {[%emt 0:00:00]} d5 {[%emt 0:00:00]} 3. e5 {[%emt 0:00:00]} Bf5 {[%emt 0:00:00]} 4. h4 {[%emt 0:00:00]} h5 {[%emt 0:00:00]} 5. Bd3 {[%emt 0:00:00]} Bxd3 {[%emt 0:00:11]} 6. Qxd3 {[%emt 0:00:02]} e6 {[%emt 0:00:10]} 7. Nf3 {[%emt 0:00:03]} Qa5+ {[%emt 0:00:13]} 8. Nbd2 {[%emt 0:00:09]} Nh6 {[%emt 0:00:17]} 9. O-O {[%emt 0:00:13]} Nf5 {[%emt 0:00:18]} 10. c4 {[%emt 0:01:35]} Be7 {[%emt 0:00:08]} 11. g3 {[%emt 0:00:17]} g6 {[%emt 0:01:14]} 12. b3 {[%emt 0:00:47]} Na6 {[%emt 0:02:20]} 13. a3 {[%emt 0:01:12]} Qd8 {[%emt 0:00:01]} 14. cxd5 {[%emt 0:00:57]} Qxd5 {[%emt 0:00:49]} 15. Bb2 {[%emt 0:00:34]} O-O {[%emt 0:01:44]} 16. Rad1 {[%emt 0:00:22]} Rfd8 {[%emt 0:00:15]} 17. Ne4 {[%emt 0:00:38]} Nc5 {[%emt 0:00:45]} 18. Nxc5 {[%emt 0:00:02]} Bxc5 {[%emt 0:00:01]} 19. Qe2 {[%emt 0:04:44]} Bb6 {[%emt 0:01:01]} 20. Rd3 {[%emt 0:00:13]} c5 {[%emt 0:01:01]} 21. Ng5 {[%emt 0:00:26]} cxd4 {[%emt 0:00:34]} 22. Re1 {[%emt 0:02:43]} Rd7 {[%emt 0:02:26]} 23. Bc1 {[%emt 0:00:05]} Bd8 {[%emt 0:00:04]} 24. Ne4 {[%emt 0:00:30]} Qxe5 {[%emt 0:00:33]} 25. Bf4 {[%emt 0:01:57]} Qg7 {[%emt 0:01:54]} 26. Rc1 {[%emt 0:00:29]} Be7 {[%emt 0:00:47]} 27. b4 {[%emt 0:00:49]} Rad8 {[%emt 0:00:40]} 28. Bg5 {[%emt 0:00:13]} b6 {[%emt 0:00:08]} 29. Bxe7 {[%emt 0:00:27]} Rxe7 {[%emt 0:00:06]} 30. Ng5 {[%emt 0:00:12]} e5 {[%emt 0:00:27]} 31. Ne4 {[%emt 0:00:15]} Nd6 {[%emt 0:00:44]} 32. Nxd6 {[%emt 0:00:10]} Rxd6 {[%emt 0:00:01]} 33. Rc8+ {[%emt 0:00:01]} Kh7 {[%emt 0:00:01]} 34. Qe4 {[%emt 0:00:06]} Rde6 {[%emt 0:00:58]} 35. Rd1 {[%emt 0:00:05]} Qf6 {[%emt 0:00:22]} 36. Rdc1 {[%emt 0:00:07]} Re8 {[%emt 0:00:04]} 37. R8c7 {[%emt 0:00:04]} R6e7 {[%emt 0:00:06]} 38. R7c6 {[%emt 0:00:07]} Qf5 {[%emt 0:00:02]} 39. Qd5 {[%emt 0:00:06]} Rd7 {[%emt 0:00:13]} 40. Qb3 {[%emt 0:00:30]} d3 {[%emt 0:00:06]} 41. Rd1 {[%emt 0:00:13]} e4 {[%emt 0:00:20]} 42. Qb2 {[%emt 0:00:20]} Qe5 {[%emt 0:00:02]} 43. Qc1 {[%emt 0:00:14]} e3 {[%emt 0:00:11]} 44. Qxe3 {[%emt 0:00:01]} Qxe3 {[%emt 0:00:01]} 45. fxe3 {[%emt 0:00:01]} Rxe3 {[%emt 0:00:00]} 46. Kf2 {[%emt 0:00:12]} Re2+ {[%emt 0:00:08]} 47. Kf3 {[%emt 0:00:03]} Rc2 {[%emt 0:00:11]} 48. Rf6 {[%emt 0:00:17]} d2 {[%emt 0:00:11]} 49. Ke2 {[%emt 0:00:11]} Re7+ {[%emt 0:00:22]} 50. Kd3 {[%emt 0:00:11]} Ra2 {[%emt 0:00:01]} 51. Rdf1 {[%emt 0:00:21]} Kg7 {[%emt 0:00:05]} 52. R6f4 {[%emt 0:00:06]} Rd7+ {[%emt 0:00:13]} 0-1

[Event "Nino Khurtsidze Memorial 2019"]
[Site "Vani"]
[Date "2019.09.17"]
[Round "1.5"]
[White "Zhukova, Natalia"]
[Black "Arabidze, Meri"]
[Result "1/2-1/2"]
[ECO "D36"]
[WhiteElo "2331"]
[BlackElo "2402"]
[Annotator "ChessBase"]
[PlyCount "69"]
[EventDate "2019.09.17"]
[EventType "tourn"]
[EventCountry "GEO"]
[SourceTitle "playchess.com"]
[Source "ChessBase"]
[SourceQuality "1"]
[TimeControl "900+10"]

1. c4 {[%emt 0:00:00]} e6 {[%emt 0:00:00]} 2. Nc3 {[%emt 0:00:02]} d5 {[%emt 0:00:00]} 3. d4 {[%emt 0:00:02]} Nf6 {[%emt 0:00:03]} 4. cxd5 {[%emt 0:00:02]} exd5 {[%emt 0:00:04]} 5. Bg5 {[%emt 0:00:03]} Be7 {[%emt 0:00:11]} 6. e3 {[%emt 0:00:02]} c6 {[%emt 0:00:12]} 7. Bd3 {[%emt 0:00:03]} Nbd7 {[%emt 0:00:04]} 8. Nge2 {[%emt 0:00:02]} O-O {[%emt 0:00:36]} 9. f3 {[%emt 0:00:48]} Re8 {[%emt 0:00:09]} 10. Qc2 {[%emt 0:01:21]} Nf8 {[%emt 0:00:16]} 11. O-O {[%emt 0:02:09]} Ng6 {[%emt 0:00:31]} 12. e4 {[%emt 0:02:47]} dxe4 {[%emt 0:00:30]} 13. fxe4 {[%emt 0:00:02]} Ng4 {[%emt 0:00:32]} 14. Bxe7 {[%emt 0:05:30]} Qxe7 {[%emt 0:00:02]} 15. Qd2 {[%emt 0:00:01]} c5 {[%emt 0:02:37]} 16. h3 {[%emt 0:00:01]} Nf6 {[%emt 0:00:26]} 17. e5 {[%emt 0:00:11]} cxd4 {[%emt 0:01:51]} 18. exf6 {[%emt 0:00:11]} dxc3 {[%emt 0:00:01]} 19. Qxc3 {[%emt 0:01:25]} Qe3+ {[%emt 0:00:42]} 20. Rf2 {[%emt 0:00:11]} Bd7 {[%emt 0:01:23]} 21. fxg7 {[%emt 0:00:37]} Re7 {[%emt 0:04:24]} 22. Rd1 {[%emt 0:01:06]} Ba4 {[%emt 0:02:07]} 23. b3 {[%emt 0:00:08]} Bc6 {[%emt 0:00:05]} 24. Bxg6 {[%emt 0:01:12]} hxg6 {[%emt 0:00:17]} 25. Qf6 {[%emt 0:00:31]} Qe5 {[%emt 0:00:54]} 26. Qxe5 {[%emt 0:00:14]} Rxe5 {[%emt 0:00:01]} 27. Rd6 {[%emt 0:00:01]} Kxg7 {[%emt 0:00:14]} 28. Nd4 {[%emt 0:00:01]} Rd5 {[%emt 0:00:32]} 29. Rxd5 {[%emt 0:00:26]} Bxd5 {[%emt 0:00:01]} 30. Rd2 {[%emt 0:00:05]} Be4 {[%emt 0:00:13]} 31. Nb5 {[%emt 0:00:18]} a6 {[%emt 0:00:11]} 32. Nd6 {[%emt 0:00:16]} Bc6 {[%emt 0:00:01]} 33. Nc4 {[%emt 0:00:03]} Re8 {[%emt 0:01:06]} 34. Na5 {[%emt 0:00:12]} Re6 {[%emt 0:00:06]} 35. Nxc6 {[%emt 0:00:05]} 1/2-1/2

[Event "Nino Khurtsidze Memorial 2019"]
[Site "Vani"]
[Date "2019.09.17"]
[Round "2.1"]
[White "Mamedjarova, Zeinab"]
[Black "Arabidze, Meri"]
[Result "0-1"]
[ECO "D05"]
[WhiteElo "2300"]
[BlackElo "2398"]
[Annotator "ChessBase"]
[PlyCount "86"]
[EventDate "2019.09.17"]
[EventType "tourn"]
[EventCountry "GEO"]
[SourceTitle "playchess.com"]
[Source "ChessBase"]
[SourceQuality "1"]
[TimeControl "900+10"]

1. d4 {[%emt 0:00:00]} d5 {[%emt 0:00:00]} 2. Nf3 {[%emt 0:00:00]} Nf6 {[%emt 0:00:00]} 3. e3 {[%emt 0:00:01]} e6 {[%emt 0:00:14]} 4. Bd3 {[%emt 0:00:05]} c5 {[%emt 0:00:02]} 5. O-O {[%emt 0:00:03]} Nc6 {[%emt 0:00:02]} 6. b3 {[%emt 0:00:08]} Bd6 {[%emt 0:00:12]} 7. Bb2 {[%emt 0:00:06]} O-O {[%emt 0:00:20]} 8. dxc5 Bxc5 {[%emt 0:00:03]} 9. Nbd2 {[%emt 0:00:23]} h6 {[%emt 0:01:01]} 10. a3 {[%emt 0:00:05]} Qe7 {[%emt 0:00:11]} 11. c4 {[%emt 0:00:02]} Rd8 {[%emt 0:00:41]} 12. b4 {[%emt 0:01:16]} Bb6 {[%emt 0:00:46]} 13. Qe2 {[%emt 0:00:43]} Bd7 {[%emt 0:00:58]} 14. Rac1 {[%emt 0:01:07]} a6 {[%emt 0:00:17]} 15. Bb1 {[%emt 0:00:13]} dxc4 {[%emt 0:02:15]} 16. Nxc4 {[%emt 0:00:26]} Bc7 {[%emt 0:00:02]} 17. Qc2 {[%emt 0:00:32]} Rac8 {[%emt 0:01:36]} 18. h3 {[%emt 0:00:01]} b5 {[%emt 0:01:03]} 19. Ncd2 {[%emt 0:00:10]} Ne5 {[%emt 0:00:51]} 20. Qb3 {[%emt 0:00:31]} Nxf3+ {[%emt 0:00:36]} 21. Nxf3 {[%emt 0:00:02]} e5 {[%emt 0:01:50]} 22. Rfd1 {[%emt 0:00:31]} Be6 {[%emt 0:00:34]} 23. Qc2 {[%emt 0:00:52]} Bb8 {[%emt 0:00:24]} 24. Rxd8+ {[%emt 0:01:10]} Qxd8 {[%emt 0:00:02]} 25. Rd1 {[%emt 0:00:42]} Qe8 {[%emt 0:00:04]} 26. Qe2 {[%emt 0:01:25]} Bc4 {[%emt 0:00:09]} 27. Qe1 {[%emt 0:00:05]} Qe6 {[%emt 0:00:31]} 28. Rd2 {[%emt 0:00:39]} e4 {[%emt 0:00:43]} 29. Nd4 {[%emt 0:01:37]} Qe5 {[%emt 0:00:01]} 30. g3 {[%emt 0:00:05]} Qg5 {[%emt 0:00:09]} 31. Kg2 {[%emt 0:00:12]} h5 {[%emt 0:00:10]} 32. h4 {[%emt 0:00:03]} Qg6 {[%emt 0:00:12]} 33. Ne2 {[%emt 0:00:52]} Ng4 {[%emt 0:00:32]} 34. Nf4 {[%emt 0:00:25]} Bxf4 {[%emt 0:01:05]} 35. exf4 {[%emt 0:00:02]} Bd3 {[%emt 0:00:02]} 36. Bxd3 {[%emt 0:02:25]} exd3 {[%emt 0:00:01]} 37. f3 {[%emt 0:00:39]} Nh6 {[%emt 0:00:09]} 38. Kh3 {[%emt 0:01:31]} Nf5 {[%emt 0:00:45]} 39. Rxd3 {[%emt 0:00:28]} Rc2 {[%emt 0:00:15]} 40. Bc3 {[%emt 0:01:16]} Nxg3 {[%emt 0:00:50]} 41. Rd5 {[%emt 0:00:40]} Nf5 {[%emt 0:00:54]} 42. Bd2 {[%emt 0:00:14]} Kh7 {[%emt 0:00:27]} 43. Qe4 {[%emt 0:00:08]} Qg3# {[%emt 0:00:03]} 0-1

[Event "Nino Khurtsidze Memorial 2019"]
[Site "Vani"]
[Date "2019.09.17"]
[Round "2.2"]
[White "Batsiashvili, Nino"]
[Black "Zhukova, Natalia"]
[Result "1/2-1/2"]
[ECO "A14"]
[WhiteElo "2415"]
[BlackElo "2333"]
[Annotator "ChessBase"]
[PlyCount "85"]
[EventDate "2019.09.17"]
[EventType "tourn"]
[EventCountry "GEO"]
[SourceTitle "playchess.com"]
[Source "ChessBase"]
[SourceQuality "1"]
[TimeControl "900+10"]

1. c4 {[%emt 0:00:00]} c5 {[%emt 0:00:00]} 2. Nc3 {[%emt 0:00:05]} Nf6 {[%emt 0:00:00]} 3. Nf3 {[%emt 0:00:19]} e6 {[%emt 0:00:13]} 4. g3 {[%emt 0:00:15]} d5 {[%emt 0:00:06]} 5. cxd5 {[%emt 0:00:02]} Nxd5 {[%emt 0:00:03]} 6. Bg2 {[%emt 0:00:06]} Be7 {[%emt 0:00:09]} 7. O-O {[%emt 0:00:26]} Nc6 {[%emt 0:00:08]} 8. d4 {[%emt 0:00:44]} O-O {[%emt 0:00:04]} 9. Nxd5 {[%emt 0:01:46]} exd5 {[%emt 0:00:01]} 10. dxc5 {[%emt 0:02:09]} Bxc5 {[%emt 0:00:02]} 11. b3 {[%emt 0:02:11]} Re8 {[%emt 0:01:41]} 12. Bb2 {[%emt 0:00:03]} Bf5 {[%emt 0:00:21]} 13. Rc1 {[%emt 0:00:15]} Bb6 {[%emt 0:00:04]} 14. Qd2 {[%emt 0:00:47]} Qd7 {[%emt 0:03:59]} 15. Rfd1 {[%emt 0:01:57]} Rad8 {[%emt 0:00:01]} 16. b4 {[%emt 0:02:29]} Qe7 {[%emt 0:06:32]} 17. b5 {[%emt 0:02:17]} Na5 {[%emt 0:00:01]} 18. Qc3 {[%emt 0:00:02]} f6 {[%emt 0:00:01]} 19. Nd4 {[%emt 0:00:14]} Be4 {[%emt 0:00:49]} 20. Ba3 {[%emt 0:00:04]} Qf7 {[%emt 0:00:17]} 21. Bc5 {[%emt 0:00:41]} Nc4 {[%emt 0:00:49]} 22. Bxb6 {[%emt 0:00:02]} axb6 {[%emt 0:00:26]} 23. f3 {[%emt 0:00:42]} Bg6 {[%emt 0:00:01]} 24. e4 {[%emt 0:00:01]} Ra8 {[%emt 0:02:52]} 25. Nb3 {[%emt 0:00:51]} Rxa2 {[%emt 0:00:10]} 26. Rxd5 {[%emt 0:00:00]} Ne3 {[%emt 0:00:09]} 27. Rd2 {[%emt 0:00:12]} Rxd2 {[%emt 0:00:02]} 28. Nxd2 {[%emt 0:00:01]} Nxg2 {[%emt 0:00:03]} 29. Kxg2 {[%emt 0:00:01]} f5 {[%emt 0:00:12]} 30. Qc4 {[%emt 0:00:27]} fxe4 {[%emt 0:00:05]} 31. Qxf7+ {[%emt 0:00:03]} Kxf7 {[%emt 0:00:10]} 32. Nxe4 {[%emt 0:00:08]} Bxe4 {[%emt 0:00:06]} 33. Rc7+ {[%emt 0:00:02]} Kf6 {[%emt 0:00:07]} 34. fxe4 {[%emt 0:00:04]} Re5 {[%emt 0:00:17]} 35. Rxb7 {[%emt 0:00:05]} Rxb5 {[%emt 0:00:01]} 36. Kf3 {[%emt 0:00:02]} h6 {[%emt 0:00:09]} 37. h4 {[%emt 0:00:26]} h5 {[%emt 0:00:21]} 38. Kf4 {[%emt 0:00:03]} Rb4 {[%emt 0:00:31]} 39. Rc7 {[%emt 0:00:02]} g6 {[%emt 0:00:15]} 40. Rc6+ {[%emt 0:00:02]} Kf7 {[%emt 0:00:02]} 41. Rd6 {[%emt 0:00:33]} Rb5 {[%emt 0:00:08]} 42. Rc6 {[%emt 0:00:21]} Rb4 {[%emt 0:00:01]} 43. Rd6 {[%emt 0:00:17]} 1/2-1/2